bitfinex/quotes_ETHUSD_20250821
["timestamp","ask_amount","ask_price","bid_price","bid_amount"]
[1755745751517,0.002,4331.7,4331.5,2.30866454]
[1755745751725,0.002,4331.7,4331.6,3.642]
[1755745751997,0.002,4331.7,4331.6,4.07608615]
[1755745752206,0.002,4331.7,4331.6,7.52028615]
[1755745752355,0.002,4331.7,4331.6,7.4972]
[1755745753280,0.002,4331.7,4331.6,3.8552]
[1755745753480,0.002,4331.7,4331.6,7.4972]
[1755745754303,0.002,4331.7,4331.6,13.76836448]
[1755745754624,0.002,4331.7,4331.6,16.07698023]
[1755745755086,0.002,4331.7,4331.6,16.17448823]
[1755745755676,0.02,4331.8,4331.7,5.96856245]
[1755745755876,0.02,4331.8,4331.7,6.70856245]
[1755745756666,0.02,4331.8,4331.7,10.35356245]
[1755745757070,0.02,4332.8,4331.9,0.66]
[1755745757282,0.02,4332.8,4332.7,24.41824491]
[1755745757492,0.02,4332.8,4332.7,28.06224491]
[1755745757702,0.02,4332.8,4332.7,30.37027454]
[1755745757881,0.02,4332.8,4332.7,30.81447454]
[1755745758066,0.02,4332.8,4332.7,28.65144491]
[1755745758255,0.02,4332.8,4332.7,28.20724491]
[1755745758666,0.02,4332.8,4332.7,30.95947454]
[1755745759166,0.02,4332.8,4332.7,31.61947454]
[1755745759368,0.02,4332.8,4332.7,29.31144491]
[1755745759668,0.02,4332.8,4332.7,25.66744491]
[1755745759797,0.02,4332.8,4332.7,6.786]
[1755745760479,0.02,4332.8,4332.7,7.0818]
[1755745760888,0.02,4332.8,4332.7,28.64844491]
[1755745761275,0.02,4332.8,4332.7,28.20424491]
[1755745761475,0.02,4332.8,4332.7,28.64844491]
[1755745762181,0.02,4332.8,4332.7,30.95647454]
[1755745762517,0.02,4332.8,4332.7,9.83402963]
[1755745763119,0.02,4332.8,4332.7,25.00744491]
[1755745763284,0.02,4332.8,4332.7,30.95247454]
[1755745763480,0.02,4332.8,4332.7,6.19302963]
[1755745763795,0.02,4332.8,4332.7,30.95247454]
[1755745764373,0.02,4332.8,4332.7,6.8972]
[1755745764579,0.02,4332.8,4332.7,9.50102963]
[1755745764828,0.02,4332.8,4332.7,9.94522963]
[1755745766310,0.02,4332.8,4332.7,10.60522963]
[1755745766641,0.02,4332.8,4332.7,5.56822963]
[1755745767301,0.02,4332.8,4332.7,9.20522963]
[1755745767500,0.119,4332.8,4332.7,0.2602]
[1755745767701,0.119,4332.8,4332.7,3.8962]
[1755745767903,0.119,4332.8,4332.7,0.2602]
[1755745768443,0.02,4332.8,4332.7,9.82902963]
[1755745768645,0.02,4332.8,4332.7,6.40882963]
[1755745768843,0.02,4332.8,4332.7,30.50927454]
[1755745769053,0.02,4332.8,4332.7,30.95547454]
[1755745770139,0.02,4332.8,4332.7,27.31547454]
[1755745770336,0.02,4332.8,4332.7,30.95447454]
[1755745770647,0.02,4332.8,4332.7,30.95247454]
[1755745771933,0.002,4333.3,4333.2,2.30776331]
[1755745772111,0.002,4333.3,4333.2,30.38508585]
[1755745772441,0.02,4333.8,4333.7,2.30749705]
[1755745772649,0.02,4333.8,4333.7,30.38481693]
[1755745772819,0.02,4333.8,4333.7,30.80594196]
[1755745773410,0.02,4333.8,4333.7,30.95094196]
[1755745774850,0.02,4333.8,4333.7,3.145]
[1755745775053,0.02,4333.8,4333.7,3.778]
[1755745775054,0.119,4333.8,4333.7,3.778]
[1755745775520,0.119,4333.8,4333.7,0.145]
[1755745775721,0.119,4333.8,4333.7,3.778]
[1755745775908,0.119,4333.8,4333.7,3.80107497]
[1755745776112,0.119,4333.8,4333.7,24.92351988]
[1755745776348,0.121,4333.8,4333.7,24.90044491]
[1755745776551,0.022,4333.8,4333.7,24.90044491]
[1755745776922,0.022,4333.8,4333.7,24.56324491]
[1755745777253,0.022,4333.8,4333.7,30.94594196]
[1755745777753,0.121,4333.8,4333.7,0.145]
[1755745778239,0.2655,4333.8,4333.7,0.145]
[1755745778415,0.121,4333.8,4333.7,3.9072]
[1755745778617,0.121,4333.8,4333.7,3.792]
[1755745778818,0.121,4333.8,4333.7,3.9072]
[1755745779023,0.121,4333.8,4333.7,3.93027497]
[1755745779341,0.121,4333.8,4333.7,3.9082]
[1755745779552,0.2655,4333.8,4333.7,0.2602]
[1755745779714,0.2655,4333.8,4333.7,3.9092]
[1755745779917,0.2655,4333.8,4333.7,0.2602]
[1755745780216,0.2655,4333.8,4333.7,3.9092]
[1755745780459,0.121,4333.8,4333.7,3.793]
[1755745780741,0.022,4333.8,4333.7,3.93127497]
[1755745781246,0.022,4333.8,4333.7,9.84899705]
[1755745782242,0.0235,4333.8,4333.7,3.145]
[1755745782443,0.0235,4333.8,4333.7,6.796]
[1755745782818,0.022,4333.8,4333.7,3.145]
[1755745783013,0.022,4333.8,4333.7,9.87507202]
[1755745783214,0.022,4333.8,4333.7,9.41329705]
[1755745783510,0.022,4333.8,4333.7,9.85199705]
[1755745784247,0.022,4333.8,4333.7,10.51199705]
[1755745785344,0.022,4333.8,4333.7,6.86099705]
[1755745785645,0.022,4333.8,4333.7,3.145]
[1755745785847,0.022,4333.8,4333.7,6.795]
[1755745786350,0.022,4333.8,4333.7,9.85099705]
[1755745786521,0.022,4333.8,4333.7,7.5425]
[1755745786727,0.022,4333.8,4333.7,9.84999705]
[1755745787250,0.022,4333.8,4333.7,10.50999705]
[1755745788026,0.02,4336.8,4334.7,2.30696472]
[1755745788227,0.145,4336.1,4334.7,30.38720963]
[1755745788441,0.145,4336.1,4334.7,28.08024491]
[1755745788752,0.145,4336.1,4334.7,30.53220963]
[1755745789238,0.02,4336.8,4334.7,24.26744491]
[1755745789441,0.119,4334.8,4334.7,27.91444491]
[1755745790351,0.119,4334.8,4334.7,28.08873141]
[1755745791056,0.02,4334.8,4334.7,28.20393141]
[1755745791259,0.02,4334.8,4334.7,30.51089613]
[1755745791632,0.02,4334.8,4334.7,31.25939613]
[1755745792176,0.145,4336.7,4334.9,0.66]
[1755745792330,0.145,4336.7,4335.7,21.23764491]
[1755745792526,0.145,4336.7,4335.7,24.88364491]
[1755745792726,0.02,4336.8,4335.7,30.49987755]
[1755745792927,0.02,4336.8,4335.7,30.93857755]
[1755745794358,0.002,4336.3,4335.7,30.93857755]
[1755745794723,0.002,4336.3,4335.7,28.63214491]
[1755745794925,0.002,4336.3,4335.7,30.93857755]
[1755745795244,0.002,4336.3,4335.7,30.93557755]
[1755745795650,0.002,4336.3,4335.7,31.59557755]
[1755745796935,0.002,4336.3,4335.7,31.59357755]
[1755745797465,0.002,4336.3,4335.7,24.54744491]
[1755745797632,0.002,4336.3,4335.7,27.87864491]
[1755745797838,0.002,4336.3,4335.7,30.18507755]
[1755745798041,0.002,4336.3,4335.7,31.59357755]
[1755745798650,0.002,4336.3,4335.7,30.18407755]
[1755745798849,0.002,4336.3,4335.7,24.23764491]
[1755745799061,0.002,4336.3,4335.7,27.87764491]
[1755745799368,0.119,4335.8,4335.7,0.1152]
[1755745799687,0.119,4335.8,4335.7,28.11114491]
[1755745799868,0.119,4335.8,4335.7,24.23764491]
[1755745800056,0.119,4335.8,4335.7,27.87764491]
[1755745800257,0.119,4335.8,4335.7,0.1152]
[1755745800556,0.119,4335.8,4335.7,3.7542]
[1755745800760,0.2635,4335.8,4335.7,3.7542]
[1755745801067,0.119,4335.8,4335.7,3.7542]
[1755745801572,0.02,4335.8,4335.7,25.18644491]
[1755745801777,0.02,4335.8,4335.7,24.87664491]
[1755745801948,0.119,4335.8,4335.7,0.1152]
[1755745802140,0.119,4335.8,4335.7,3.7552]
[1755745802340,0.119,4335.8,4335.7,0.1152]
[1755745802569,0.119,4335.8,4335.7,3.77826432]
[1755745802791,0.02,4335.8,4335.7,24.90070923]
[1755745802938,0.02,4335.8,4335.7,24.87764491]
[1755745803338,0.02,4335.8,4335.7,25.01284491]
[1755745804183,0.2635,4335.8,4335.7,0.2504]
[1755745804349,0.2635,4335.8,4335.7,3.8904]
[1755745804895,0.2635,4335.8,4334.5,4.13399999]
[1755745804896,0.3787,4335.8,4335.1,0.1152]
[1755745805068,0.1445,4335.7,4335.2,3.64]
[1755745805382,0.0995,4335.3,4334.9,0.3787]
[1755745805591,0.0995,4335.3,4335.0,3.64]
[1755745805894,0.0995,4335.3,4334.9,0.1152]
[1755745805895,0.1441,4335.2,4335.1,3.64]
[1755745806049,0.244,4335.2,4335.1,3.64]
[1755745806254,0.0999,4335.2,4335.1,3.7552]
[1755745807486,0.02,4335.8,4335.1,3.77826751]
[1755745807854,0.02,4335.8,4335.4,0.1152]
[1755745808055,0.232,4335.5,4335.4,0.1152]
[1755745808252,0.3601,4335.5,4335.4,3.637]
[1755745808583,0.3472,4335.5,4335.4,3.637]
[1755745808783,0.02,4335.8,4335.4,3.637]
[1755745808963,0.02,4335.8,4335.7,0.1152]
[1755745809165,0.119,4335.8,4335.7,0.1152]
[1755745809353,0.119,4335.8,4335.7,3.7562]
[1755745809781,0.1195,4335.8,4335.7,3.7562]
[1755745810104,0.02,4335.8,4335.7,0.1152]
[1755745810255,0.02,4335.8,4335.7,4.52776432]
[1755745810680,0.02,4335.8,4335.7,9.83419696]
[1755745811002,0.02,4335.8,4335.7,9.81113264]
[1755745811512,0.02,4335.8,4335.7,10.47113264]
[1755745811868,0.002,4336.3,4336.2,2.30616668]
[1755745812109,0.002,4336.3,4336.2,31.04737325]
[1755745812310,0.002,4336.3,4336.2,31.61051159]
[1755745812481,0.002,4336.3,4336.2,27.96951159]
[1755745812677,0.002,4336.3,4336.2,31.60951159]
[1755745813272,0.002,4336.3,4336.2,28.64234491]
[1755745813465,0.002,4336.3,4336.2,3.1152]
[1755745813697,0.002,4336.3,4336.2,6.77726166]
[1755745813900,0.002,4336.3,4336.2,27.87664491]
[1755745814416,0.002,4336.3,4336.2,0.1152]
[1755745814624,0.0034,4336.3,4336.2,3.7542]
[1755745814769,0.002,4336.3,4336.2,28.64234491]
[1755745814973,0.002,4336.3,4336.2,3.4099]
[1755745815289,0.002,4336.3,4336.2,6.77826166]
[1755745815490,0.002,4336.3,4336.2,6.7552]
[1755745815704,0.002,4336.3,4336.2,5.71606668]
[1755745815870,0.002,4336.3,4336.2,3.8809]
[1755745816201,0.002,4336.3,4336.2,30.97957325]
[1755745816398,0.002,4336.3,4336.2,30.95651159]
[1755745817003,0.002,4336.3,4336.2,31.61651159]
[1755745817204,0.002,4336.3,4336.2,27.96951159]
[1755745817389,0.002,4336.3,4336.2,31.61551159]
[1755745817592,0.002,4336.3,4336.2,25.00334491]
[1755745818111,0.002,4336.3,4336.2,6.7612]
[1755745818486,0.002,4336.3,4336.2,7.5269]
[1755745819285,0.002,4336.3,4336.2,27.88264491]
[1755745819780,0.002,4336.3,4336.2,30.95451159]
[1755745820397,0.002,4336.3,4336.2,37.15751159]
[1755745821809,0.003,4337.1,4336.7,2.3059008]
[1755745821995,0.003,4337.1,4336.7,27.36704571]
[1755745822192,0.003,4337.1,4336.7,30.83804571]
[1755745822491,0.003,4337.1,4336.7,30.95324571]
[1755745822688,0.003,4337.1,4336.7,30.95124571]
[1755745822910,0.003,4337.1,4336.7,31.61124571]
[1755745823127,0.003,4337.1,4337.0,2.30574129]
[1755745823277,0.02,4337.8,4337.7,26.42781411]
[1755745823586,0.02,4337.8,4337.7,30.36451411]
[1755745823778,0.02,4337.8,4337.7,30.95071411]
[1755745823979,0.02,4337.8,4337.7,31.61071411]
[1755745824729,0.003,4338.1,4337.7,31.61071411]
[1755745824730,0.003,4338.1,4338.0,2.30520977]
[1755745824926,0.003,4338.1,4338.0,6.24290977]
[1755745825105,0.003,4338.1,4338.0,6.82910977]
[1755745825526,0.145,4339.9,4338.7,2.30483785]
[1755745825682,0.1152,4340.3,4338.7,24.76344491]
[1755745825882,0.165,4339.8,4338.7,21.23764491]
[1755745826101,0.119,4338.8,4338.7,3.7562]
[1755745827631,0.119,4338.8,4338.7,3.7552]
[1755745827799,0.02,4338.8,4338.7,4.54394837]
[1755745828230,0.02,4338.8,4338.7,3.13824837]
[1755745828429,0.02,4338.8,4338.7,27.87664491]
[1755745828932,0.02,4338.8,4338.7,24.23764491]
[1755745829141,0.02,4338.8,4338.7,27.87564491]
[1755745829313,0.02,4338.8,4338.7,30.94618276]
[1755745829520,0.02,4338.8,4338.7,27.87564491]
[1755745829846,0.02,4338.8,4338.7,28.64134491]
[1755745830061,0.02,4338.8,4338.7,30.94618276]
[1755745830409,0.02,4338.8,4338.7,31.60618276]
[1755745830803,0.02,4339.8,4338.8,3.0]
[1755745830804,0.002,4339.7,4338.8,3.0]
[1755745831026,0.002,4339.7,4339.6,26.72150475]
[1755745831210,0.002,4339.7,4339.6,30.47270475]
[1755745831418,0.002,4339.7,4339.6,30.94370475]
[1755745831960,0.002,4339.7,4339.6,28.63934491]
[1755745832162,0.002,4339.7,4339.6,24.53234491]
[1755745832447,0.002,4339.7,4339.6,0.1152]
[1755745832630,0.0035,4339.7,4339.6,3.7512]
[1755745832835,0.002,4339.7,4339.6,3.7512]
[1755745833036,0.0035,4339.7,4339.6,3.7502]
[1755745834069,0.0035,4339.7,4338.6,21.12244491]
[1755745834209,0.0035,4339.7,4337.8,0.471]
[1755745834210,0.1152,4339.5,4337.9,5.54]
[1755745834407,0.0035,4339.7,4338.5,0.1152]
[1755745834408,0.0015,4339.4,4338.5,0.1152]
[1755745834761,0.0015,4339.4,4338.6,3.635]
[1755745834918,0.1152,4338.8,4338.7,3.635]
[1755745835139,0.1167,4338.8,4338.7,3.635]
[1755745835951,0.1167,4338.8,4338.1,0.13825156]
[1755745836168,0.1167,4338.8,4338.2,3.635]
[1755745836309,0.147,4339.7,4338.4,21.12244491]
[1755745836511,0.147,4339.7,4338.7,0.1152]
[1755745836512,0.1152,4339.5,4338.7,0.1152]
[1755745836737,0.2622,4339.7,4338.8,3.634]
[1755745836943,0.2622,4339.7,4339.0,0.1152]
[1755745837438,0.2622,4339.7,4338.6,0.1152]
[1755745837439,0.099,4339.1,4338.6,0.1152]
[1755745837636,0.1445,4339.0,4338.6,0.1152]
[1755745837820,0.1152,4339.2,4338.7,3.634]
[1755745837821,0.145,4338.9,4338.7,3.634]
[1755745838022,0.2449,4338.8,4338.2,0.1152]
[1755745838227,0.3601,4338.8,4338.3,3.634]
[1755745838443,0.0129,4338.7,4338.4,3.634]
[1755745838614,0.1152,4338.8,4338.5,3.634]
[1755745838815,0.015,4339.5,4338.5,3.634]
[1755745839014,0.1152,4339.2,4338.6,0.1152]
[1755745840039,0.002,4339.7,4338.5,24.75644491]
[1755745840245,0.002,4339.7,4339.0,0.1152]
[1755745840407,0.002,4339.7,4339.3,0.1152]
[1755745840611,0.002,4339.7,4339.4,3.634]
[1755745840842,0.099,4339.5,4339.4,3.634]
[1755745841422,0.099,4339.5,4339.3,0.1152]
[1755745841622,0.145,4339.4,4337.9,26.66244491]
[1755745841943,0.2602,4339.4,4338.8,0.1152]
[1755745842261,0.2602,4339.4,4338.9,3.633]
[1755745842549,0.2602,4339.4,4337.9,26.66244491]
[1755745842550,0.2602,4339.4,4338.6,0.1152]
[1755745842712,0.145,4339.4,4338.7,3.632]
[1755745842913,0.1152,4338.8,4338.2,0.1152]
[1755745843146,0.1152,4338.8,4338.3,3.632]
[1755745843944,0.1152,4338.8,4338.0,0.1152]
[1755745844147,0.1152,4338.8,4338.1,3.65405156]
[1755745844315,0.099,4338.2,4338.0,0.1152]
[1755745844515,0.099,4338.2,4337.8,0.02]
[1755745844516,0.1445,4338.1,4337.8,0.02]
[1755745844796,0.0995,4337.9,4337.8,0.02]
[1755745845129,0.2436,4337.9,4337.8,0.02]
[1755745845819,0.1152,4338.1,4337.8,4.4027]
[1755745846013,0.145,4339.2,4337.8,0.02]
[1755745846217,0.1152,4338.4,4337.9,3.633]
[1755745846447,0.1152,4338.4,4337.8,0.1352]
[1755745846653,0.145,4339.2,4338.0,3.634]
[1755745846816,0.1152,4338.8,4338.0,3.634]
[1755745847020,0.1152,4338.8,4338.2,0.1152]
[1755745847248,0.1152,4338.8,4338.3,0.0230505]
[1755745847446,0.1152,4338.8,4338.3,0.4567505]
[1755745847633,0.1152,4339.1,4338.5,0.1152]
[1755745848155,0.0014,4338.6,4338.1,0.1152]
[1755745848316,0.0014,4338.6,4337.8,0.02]
[1755745848528,0.1152,4337.9,4337.8,0.02]
[1755745848728,0.2598,4337.9,4337.8,0.02]
[1755745849331,21.38224491,4337.9,4337.8,0.02]
[1755745849859,0.2598,4337.9,4337.8,0.02]
[1755745850265,21.38224491,4337.9,4337.8,0.02]
[1755745850462,2.39802449,4337.9,4337.8,0.02]
[1755745850681,2.25632449,4337.9,4337.8,0.02]
[1755745850979,2.25632449,4337.9,4336.9,0.001]
[1755745850980,15.9134019,4337.0,4336.9,0.001]
[1755745851266,15.9134019,4337.0,4335.3,0.001]
[1755745851267,19.6668019,4337.0,4335.3,0.001]
[1755745851469,15.9134019,4336.1,4335.3,0.001]
[1755745851765,15.9134019,4336.1,4335.8,0.0186]
[1755745851766,0.1435,4335.9,4335.8,0.0186]
[1755745852131,0.2587,4335.9,4335.8,0.0186]
[1755745854567,16.1721019,4335.9,4335.8,0.0186]
[1755745854968,19.8121019,4335.9,4335.8,0.0186]
[1755745855170,3.8987,4335.9,4335.8,0.0186]
[1755745855374,20.2029719,4335.9,4335.8,0.0186]
[1755745855873,20.2039719,4335.9,4335.8,0.0186]
[1755745856075,0.64857,4335.9,4335.8,0.0186]
[1755745858279,0.50507,4335.9,4335.8,0.0186]
[1755745858482,0.64717,4335.9,4335.8,0.0186]
[1755745860250,0.64857,4335.9,4335.8,0.0186]
[1755745860490,1.30857,4335.9,4335.8,0.0186]
[1755745860650,0.64717,4335.9,4335.8,0.0186]
[1755745860850,4.28857,4335.9,4335.8,0.0186]
[1755745861146,0.64717,4335.9,4335.8,0.0186]
[1755745861365,0.50507,4335.9,4335.8,0.0186]
[1755745861656,3.8973,4335.9,4335.8,0.0186]
[1755745861877,3.8983,4335.9,4335.8,0.0186]
[1755745862547,3.7542,4335.9,4335.8,0.0186]
[1755745862952,19.6690019,4335.9,4335.8,0.0186]
[1755745863167,19.8097019,4335.9,4335.8,0.0186]
[1755745863372,21.79067209,4335.9,4335.8,0.0186]
[1755745863985,22.45067209,4335.9,4335.8,0.0186]
[1755745864468,0.66,4335.8,4335.3,0.001]
[1755745864799,16.1707019,4335.4,4335.3,0.001]
[1755745865077,17.78777209,4335.4,4335.3,0.001]
[1755745865284,5.64097019,4335.9,4335.3,0.001]
[1755745865285,1.98097019,4335.9,4335.3,0.7507]
[1755745865594,0.1152,4335.4,4335.3,0.7507]
[1755745866590,2.28032449,4337.9,4335.3,0.7507]
[1755745866790,15.9134019,4337.5,4335.4,0.45676592]
[1755745866951,3.644,4337.4,4335.4,0.45676592]
[1755745867345,3.644,4337.4,4335.4,0.4337]
[1755745868672,15.9134019,4337.5,4335.4,0.4337]
[1755745868890,0.02,4336.8,4335.4,0.4337]
[1755745869051,0.02,4336.8,4336.7,0.316]
[1755745869256,0.02,4336.8,4336.7,0.7497]
[1755745870087,0.02,4336.8,4335.9,0.4337]
[1755745870273,15.9134019,4336.6,4335.3,0.001]
[1755745870476,1.59348019,4336.5,4335.5,0.4337]
[1755745870981,0.02,4336.8,4336.4,0.316]
[1755745871580,0.02,4336.8,4335.3,3.646]
[1755745871581,15.9134019,4336.5,4335.5,0.466]
[1755745871754,15.9134019,4335.7,4335.3,0.001]
[1755745871955,0.2281,4335.4,4335.3,0.001]
[1755745872155,3.8831,4335.4,4335.3,0.001]
[1755745872491,5.86418019,4335.4,4335.3,0.001]
[1755745873602,6.52418019,4335.4,4335.3,0.001]
[1755745873952,2.20918019,4335.4,4335.3,0.001]
[1755745874187,5.64108019,4335.4,4335.3,0.001]
[1755745874387,3.66,4335.4,4335.3,0.001]
[1755745874691,15.9134019,4336.0,4335.3,0.001]
[1755745874863,3.659,4335.9,4335.3,0.7679]
[1755745875189,3.659,4335.8,4335.3,0.7679]
[1755745875386,0.02,4336.8,4335.3,0.3019]
[1755745875387,0.3659,4335.7,4335.3,0.3019]
[1755745875585,3.661,4335.9,4335.3,0.3019]
[1755745875885,15.9134019,4336.7,4335.4,0.466]
[1755745876089,0.02,4336.8,4335.4,0.466]
[1755745876457,0.02,4336.8,4335.5,0.02306539]
[1755745876658,0.02,4336.8,4335.4,0.466]
[1755745876659,0.1152,4336.0,4335.6,0.466]
[1755745876859,0.02,4336.8,4335.9,0.3009]
[1755745877103,0.02,4336.8,4336.0,0.02306273]
[1755745877266,0.022,4336.8,4336.7,0.3009]
[1755745877472,0.022,4336.8,4336.7,0.7669]
[1755745878172,0.022,4336.8,4335.4,2.30658143]
[1755745878173,0.022,4336.8,4335.4,3.66]
[1755745878399,0.022,4336.8,4336.1,0.466]
[1755745878616,0.022,4336.8,4335.5,0.466]
[1755745878617,15.9354019,4336.8,4335.5,0.466]
[1755745878824,15.9134019,4336.4,4335.5,0.466]
[1755745879117,0.099,4335.6,4334.2,0.466]
[1755745879411,0.099,4335.6,4333.8,0.486]
[1755745879412,15.9134019,4335.4,4333.8,0.486]
[1755745879615,15.9134019,4335.4,4333.8,0.02]
[1755745879616,19.0128019,4335.4,4333.8,0.02]
[1755745879780,18.9134019,4335.0,4333.8,0.02]
[1755745879980,22.53750947,4335.0,4333.8,0.02]
[1755745880315,0.2,4334.6,4333.8,0.02]
[1755745880511,3.0,4334.4,4333.8,0.02]
[1755745880812,33.0,4333.9,4332.4,0.001]
[1755745881013,1.05668728,4334.3,4332.4,0.001]
[1755745881014,15.9134019,4332.9,4332.4,0.001]
[1755745881317,19.5984019,4332.9,4332.4,0.001]
[1755745881527,22.5984019,4332.9,4332.4,0.001]
[1755745881816,22.6364019,4332.9,4332.4,0.001]
[1755745881978,19.6364019,4332.9,4332.4,0.001]
[1755745882183,21.60004209,4332.9,4332.4,0.001]
[1755745883327,21.60004209,4332.9,4331.8,0.021]
[1755745883328,0.66,4332.8,4331.8,0.021]
[1755745883530,1.62451904,4332.7,4331.8,0.021]
[1755745883838,2.36213963,4333.8,4330.6,0.466]
[1755745883839,3.749,4332.6,4330.7,3.001]
[1755745884002,4.1239,4332.5,4330.9,0.0012]
[1755745884322,15.9134019,4332.2,4330.9,0.0008]
[1755745884614,4.1239,4332.5,4330.9,0.0008]
[1755745884615,15.9134019,4331.3,4330.9,0.0008]
[1755745884987,3.754,4331.2,4330.9,0.0008]
[1755745885214,3.753,4331.4,4331.1,0.3009]
[1755745885411,0.3749,4332.5,4331.1,0.3009]
[1755745885716,3.753,4332.4,4331.1,0.3009]
[1755745886020,15.9134019,4332.2,4331.2,0.466]
[1755745886182,3.755,4332.1,4331.2,0.466]
[1755745886387,15.9134019,4332.7,4331.2,0.466]
[1755745886591,3.755,4332.6,4331.3,0.02308775]
[1755745886920,0.1152,4332.0,4331.4,0.5812]
[1755745887088,0.1152,4332.3,4331.9,0.3009]
[1755745887283,0.1152,4332.3,4332.0,0.466]
[1755745887710,15.9134019,4332.1,4331.7,0.1152]
[1755745887909,15.9134019,4332.1,4331.0,0.466]
[1755745888090,1.97826019,4332.0,4331.1,0.0008]
[1755745888412,3.76,4331.9,4331.1,0.0008]
[1755745888915,3.76,4331.8,4331.1,0.0008]
[1755745889116,15.9134019,4332.1,4331.1,0.0008]
[1755745889117,3.76,4331.7,4331.1,0.0008]
[1755745889316,3.76,4331.7,4330.9,0.0008]
[1755745889520,0.376,4331.6,4330.9,0.0008]
[1755745890397,0.376,4331.6,4331.0,0.466]
[1755745890597,15.9134019,4332.3,4331.1,0.0008]
[1755745890598,3.755,4331.7,4331.1,0.0008]
[1755745891603,15.9134019,4332.3,4331.1,0.0008]
[1755745891839,15.9134019,4332.7,4331.6,0.3009]
[1755745892040,3.753,4332.6,4331.7,0.466]
[1755745892345,3.753,4332.5,4331.7,0.466]
[1755745892726,1.59134019,4333.0,4331.7,0.466]
[1755745892909,0.02,4333.8,4331.8,2.30850835]
[1755745893110,3.752,4333.7,4331.9,0.48908455]
[1755745893434,15.9134019,4333.5,4331.9,0.466]
[1755745893933,15.9134019,4333.1,4331.9,0.466]
[1755745894111,3.75,4333.0,4331.9,0.466]
[1755745894298,1.96634019,4332.9,4331.9,0.466]
[1755745895124,1.96634019,4332.9,4330.8,0.02]
[1755745895125,0.099,4332.0,4330.8,0.02]
[1755745895336,15.9134019,4332.3,4330.8,0.02]
[1755745895337,3.748,4331.9,4331.1,0.0008]
[1755745895542,3.748,4331.9,4330.9,0.4668]
[1755745895724,0.3748,4331.8,4330.9,0.4668]
[1755745895927,0.3748,4331.8,4331.0,0.02308935]
[1755745896105,3.746,4331.7,4331.1,0.0008]
[1755745896611,3.746,4331.7,4331.0,0.0008]
[1755745897147,0.099,4331.1,4330.9,0.0008]
[1755745897303,3.746,4331.0,4330.9,0.0008]
[1755745897502,4.1305,4331.0,4330.9,0.0008]
[1755745897910,20.1436019,4331.0,4330.9,0.0008]
[1755745898117,5.0054,4331.0,4330.9,0.0008]
[1755745898310,5.0054,4331.0,4330.8,0.02]
[1755745898541,5.0054,4331.0,4330.9,0.0008]
[1755745898713,5.0034,4331.0,4330.8,0.02]
[1755745899034,2.09088019,4330.9,4330.8,0.02]
[1755745899235,6.59418019,4330.9,4330.8,0.02]
[1755745899535,6.59318019,4330.9,4330.8,0.02]
[1755745899740,2.85118019,4330.9,4330.8,0.02]
[1755745899926,6.59318019,4330.9,4330.8,0.02]
[1755745900951,9.75878019,4330.9,4330.8,0.02]
[1755745901127,9.59318019,4330.9,4330.8,0.02]
[1755745901306,3.66,4330.8,4329.8,0.021]
[1755745901507,5.93318019,4330.9,4329.8,0.021]
[1755745901508,0.7752,4330.1,4329.8,0.021]
[1755745901756,4.405,4330.1,4329.8,0.021]
[1755745901968,3.748,4330.8,4330.0,0.7434]
[1755745902241,3.751,4331.1,4330.1,0.4526]
[1755745902405,0.3751,4331.0,4330.1,0.4526]
[1755745902606,15.9134019,4333.0,4330.9,0.2898]
[1755745902829,0.21386174,4332.9,4331.0,0.4526]
[1755745903153,3.96986174,4332.9,4331.0,0.4526]
[1755745903334,0.38146174,4332.8,4331.0,0.4526]
[1755745903956,0.21386174,4332.8,4331.6,15.9134019]
[1755745904108,3.766,4332.9,4331.1,15.9134019]
[1755745904305,0.59046174,4332.8,4331.2,0.4526]
[1755745904541,0.21386174,4332.8,4331.6,15.9134019]
[1755745904742,0.21386174,4332.8,4331.7,0.4526]
[1755745904962,5.571,4333.8,4332.1,15.9134019]
[1755745904963,0.21386174,4333.7,4332.1,15.9134019]
[1755745905167,5.551,4335.3,4331.7,2.76114218]
[1755745905168,0.21386174,4334.9,4333.7,5.3074561]
[1755745905374,5.551,4338.2,4334.7,15.9134019]
[1755745905375,0.02,4335.8,4334.7,15.9134019]
[1755745905680,0.02,4335.8,4334.8,0.4526]
[1755745907065,0.02,4335.8,4334.1,0.4526]
[1755745907543,0.4459,4335.7,4334.4,15.9134019]
[1755745907730,0.21391805,4335.6,4334.8,15.9134019]
[1755745907935,0.02,4335.8,4334.9,0.4526]
[1755745908378,0.02,4335.8,4334.2,0.4526]
[1755745909056,0.02,4335.8,4335.0,15.9134019]
[1755745909258,0.02,4335.8,4335.1,0.4526]
[1755745909573,0.02,4335.8,4335.3,15.9134019]
[1755745909969,0.02,4335.8,4335.4,0.4526]
[1755745910169,0.02,4335.8,4334.8,0.4526]
[1755745910882,0.02,4335.8,4335.1,15.9134019]
[1755745911199,0.02,4335.8,4334.8,4.2276]
[1755745911765,0.1152,4335.2,4334.8,4.2276]